[Event "Titled Tuesday Blitz June 28 Late 2022"]
[White "Rosen, Eric"]
[Black "Xiong, Jeffery"]
[WhiteFideId "2032562"]
[BlackFideId "2047640"]
[WhiteElo "2362"]
[BlackElo "2714"]
[Result "0-1"]
[Round "03"]
[TimeControl "180+1"]
[Date "2022.06.28"]
[WhiteClock "0:00:03"]
[BlackClock "0:00:09"]

1. d4 {[%clk 0:03:00]}  d5 {[%clk 0:02:59]} 2. Bf4 {[%clk 0:03:01]}  Nf6 {[%clk 0:02:58]} 3. e3 {[%clk 0:03:01]}  g6 {[%clk 0:02:58]} 4. Nc3 {[%clk 0:03:01]}  Bg7 {[%clk 0:02:59]} 5. h4 {[%clk 0:03:02]}  h5 {[%clk 0:02:51]} 6. Nf3 {[%clk 0:03:02]}  Bg4 {[%clk 0:02:50]} 7. Qd2 {[%clk 0:03:01]}  Bxf3 {[%clk 0:02:28]} 8. gxf3 {[%clk 0:03:02]}  Nbd7 {[%clk 0:02:28]} 9. O-O-O {[%clk 0:03:02]}  Nf8 {[%clk 0:02:28]} 10. e4 {[%clk 0:02:55]}  c6 {[%clk 0:02:26]} 11. Kb1 {[%clk 0:02:54]}  Ne6 {[%clk 0:02:25]} 12. Be3 {[%clk 0:02:54]}  dxe4 {[%clk 0:02:22]} 13. fxe4 {[%clk 0:02:53]}  Ng4 {[%clk 0:02:20]} 14. Bh3 {[%clk 0:02:53]}  Qa5 {[%clk 0:02:16]} 15. e5 {[%clk 0:02:17]}  Rd8 {[%clk 0:02:11]} 16. Qe2 {[%clk 0:02:12]}  c5 {[%clk 0:01:47]} 17. Bxg4 {[%clk 0:02:01]}  Nxd4 {[%clk 0:01:26]} 18. Bxd4 {[%clk 0:01:38]}  cxd4 {[%clk 0:01:27]} 19. e6 {[%clk 0:00:53]}  dxc3 {[%clk 0:01:14]} 20. exf7+ {[%clk 0:00:54]}  Kf8 {[%clk 0:01:14]} 21. Rxd8+ {[%clk 0:00:47]}  Qxd8 {[%clk 0:01:15]} 22. Be6 {[%clk 0:00:46]}  Bf6 {[%clk 0:01:09]} 23. Qe4 {[%clk 0:00:40]}  Qd6 {[%clk 0:00:38]} 24. Re1 {[%clk 0:00:31]}  Kg7 {[%clk 0:00:33]} 25. Rg1 {[%clk 0:00:30]}  Rh6 {[%clk 0:00:32]} 26. Bb3 {[%clk 0:00:24]}  Qc6 {[%clk 0:00:17]} 27. Qd3 {[%clk 0:00:19]}  Qd6 {[%clk 0:00:17]} 28. Qb5 {[%clk 0:00:18]}  Rh8 {[%clk 0:00:17]} 29. Qe8 {[%clk 0:00:17]}  Rf8 {[%clk 0:00:16]} 30. Qa4 {[%clk 0:00:13]}  Rd8 {[%clk 0:00:12]} 31. a3 {[%clk 0:00:12]}  Qd1+ {[%clk 0:00:06]} 32. Rxd1 {[%clk 0:00:05]}  Rxd1+ {[%clk 0:00:07]} 33. Ka2 {[%clk 0:00:06]}  cxb2 {[%clk 0:00:08]} 34. f8=Q+ {[%clk 0:00:03]}  Kxf8 {[%clk 0:00:09]} 0-1


[Site "https://www.chess.com"]

[Event "Titled Tuesday Blitz June 28 Late 2022"]
[White "Saito, Vinicius"]
[Black "Tinmaz, Kerem"]
[WhiteFideId "2113384"]
[BlackFideId "44559151"]
[WhiteElo "2168"]
[BlackElo "1443"]
[Result "0-1"]
[Round "03"]
[TimeControl "180+1"]
[Date "2022.06.29"]
[WhiteClock "0:00:43"]
[BlackClock "0:00:04"]

1. e4 {[%clk 0:03:00]}  c6 {[%clk 0:02:59]} 2. c4 {[%clk 0:03:01]}  d5 {[%clk 0:03:00]} 3. exd5 {[%clk 0:03:01]}  cxd5 {[%clk 0:03:00]} 4. cxd5 {[%clk 0:03:01]}  Nf6 {[%clk 0:03:01]} 5. Nc3 {[%clk 0:03:02]}  g6 {[%clk 0:03:01]} 6. Bc4 {[%clk 0:03:01]}  Bg7 {[%clk 0:03:01]} 7. d3 {[%clk 0:03:01]}  O-O {[%clk 0:03:02]} 8. Qb3 {[%clk 0:03:01]}  a6 {[%clk 0:02:59]} 9. a4 {[%clk 0:03:00]}  Nbd7 {[%clk 0:02:58]} 10. Nf3 {[%clk 0:03:01]}  Re8 {[%clk 0:02:42]} 11. O-O {[%clk 0:02:47]}  Nc5 {[%clk 0:02:19]} 12. Qb4 {[%clk 0:02:41]}  Qc7 {[%clk 0:02:05]} 13. Be3 {[%clk 0:02:26]}  b6 {[%clk 0:01:33]} 14. a5 {[%clk 0:02:24]}  Ncd7 {[%clk 0:00:25]} 15. axb6 {[%clk 0:02:23]}  Qb7 {[%clk 0:00:25]} 16. Na4 {[%clk 0:02:19]}  Ng4 {[%clk 0:00:20]} 17. Nc5 {[%clk 0:01:10]}  Nxc5 {[%clk 0:00:17]} 18. Qxc5 {[%clk 0:01:10]}  Nxe3 {[%clk 0:00:15]} 19. fxe3 {[%clk 0:01:09]}  Bxb2 {[%clk 0:00:14]} 20. Rab1 {[%clk 0:01:08]}  Bg7 {[%clk 0:00:14]} 21. d4 {[%clk 0:01:05]}  Bf5 {[%clk 0:00:13]} 22. Rb3 {[%clk 0:01:03]}  Rec8 {[%clk 0:00:08]} 23. Qb4 {[%clk 0:01:03]}  a5 {[%clk 0:00:08]} 24. Qb5 {[%clk 0:01:02]}  Bd7 {[%clk 0:00:07]} 25. Qa6 {[%clk 0:00:51]}  Rxa6 {[%clk 0:00:07]} 26. Bxa6 {[%clk 0:00:51]}  Qxa6 {[%clk 0:00:07]} 27. b7 {[%clk 0:00:52]}  Rb8 {[%clk 0:00:07]} 28. Rfb1 {[%clk 0:00:52]}  a4 {[%clk 0:00:05]} 29. Rb6 {[%clk 0:00:52]}  Qa7 {[%clk 0:00:04]} 30. Ne5 {[%clk 0:00:51]}  Bxe5 {[%clk 0:00:04]} 31. dxe5 {[%clk 0:00:51]}  a3 {[%clk 0:00:04]} 32. e6 {[%clk 0:00:50]}  fxe6 {[%clk 0:00:05]} 33. dxe6 {[%clk 0:00:50]}  Be8 {[%clk 0:00:04]} 34. R6b3 {[%clk 0:00:44]}  a2 {[%clk 0:00:04]} 35. Ra1 {[%clk 0:00:44]}  Rxb7 {[%clk 0:00:04]} 36. Rxb7 {[%clk 0:00:42]}  Qxb7 {[%clk 0:00:04]} 37. h3 {[%clk 0:00:43]}  Qb1+ {[%clk 0:00:04]} 0-1


[Site "https://www.chess.com"]

[Event "Titled Tuesday Blitz June 28 Late 2022"]
[White "Sarkar, Justin"]
[Black "Rosenberg, Evan S"]
[WhiteFideId "2010011"]
[BlackFideId "2019299"]
[WhiteElo "2020"]
[BlackElo "2193"]
[Result "1-0"]
[Round "03"]
[TimeControl "180+1"]
[Date "2022.06.29"]
[WhiteClock "0:00:09"]
[BlackClock "0:00:02"]

1. e4 {[%clk 0:02:55]}  e6 {[%clk 0:02:59]} 2. d4 {[%clk 0:02:50]}  d5 {[%clk 0:02:59]} 3. exd5 {[%clk 0:02:49]}  exd5 {[%clk 0:03:00]} 4. Qf3 {[%clk 0:02:49]}  Nf6 {[%clk 0:02:57]} 5. h3 {[%clk 0:02:48]}  h6 {[%clk 0:02:52]} 6. Bd3 {[%clk 0:02:45]}  c5 {[%clk 0:02:50]} 7. dxc5 {[%clk 0:02:40]}  Bxc5 {[%clk 0:02:49]} 8. Ne2 {[%clk 0:02:40]}  Nc6 {[%clk 0:02:49]} 9. Qg3 {[%clk 0:02:34]}  Nh5 {[%clk 0:02:38]} 10. Qf3 {[%clk 0:02:23]}  Nf6 {[%clk 0:02:30]} 11. Bf4 {[%clk 0:02:21]}  Qb6 {[%clk 0:02:29]} 12. Nbc3 {[%clk 0:02:15]}  Be6 {[%clk 0:02:15]} 13. O-O {[%clk 0:02:12]}  Nd4 {[%clk 0:02:08]} 14. Nxd4 {[%clk 0:02:04]}  Bxd4 {[%clk 0:02:08]} 15. Nb5 {[%clk 0:02:03]}  O-O {[%clk 0:01:46]} 16. Nxd4 {[%clk 0:01:49]}  Qxd4 {[%clk 0:01:45]} 17. c3 {[%clk 0:01:49]}  Qb6 {[%clk 0:01:24]} 18. Bxh6 {[%clk 0:01:38]}  Ne4 {[%clk 0:01:10]} 19. Bxe4 {[%clk 0:01:23]}  dxe4 {[%clk 0:01:08]} 20. Qg3 {[%clk 0:01:21]}  g6 {[%clk 0:01:04]} 21. Bxf8 {[%clk 0:01:18]}  Rxf8 {[%clk 0:01:01]} 22. b3 {[%clk 0:01:18]}  Qc5 {[%clk 0:00:48]} 23. Rad1 {[%clk 0:01:12]}  a5 {[%clk 0:00:45]} 24. Rd4 {[%clk 0:01:05]}  Bf5 {[%clk 0:00:39]} 25. Rfd1 {[%clk 0:01:02]}  Re8 {[%clk 0:00:37]} 26. Rd8 {[%clk 0:00:56]}  Rxd8 {[%clk 0:00:35]} 27. Rxd8+ {[%clk 0:00:56]}  Kg7 {[%clk 0:00:36]} 28. Qe3 {[%clk 0:00:53]}  Qe7 {[%clk 0:00:17]} 29. Qd4+ {[%clk 0:00:50]}  f6 {[%clk 0:00:17]} 30. Qd6 {[%clk 0:00:45]}  Qf7 {[%clk 0:00:06]} 31. g4 {[%clk 0:00:28]}  Be6 {[%clk 0:00:06]} 32. g5 {[%clk 0:00:25]}  fxg5 {[%clk 0:00:03]} 33. Qe5+ {[%clk 0:00:24]}  Qf6 {[%clk 0:00:04]} 34. Qxf6+ {[%clk 0:00:21]}  Kxf6 {[%clk 0:00:04]} 35. Rb8 {[%clk 0:00:17]}  Bd5 {[%clk 0:00:04]} 36. c4 {[%clk 0:00:16]}  Bc6 {[%clk 0:00:04]} 37. Ra8 {[%clk 0:00:15]}  b6 {[%clk 0:00:04]} 38. Ra6 {[%clk 0:00:14]}  Ke6 {[%clk 0:00:04]} 39. Rxb6 {[%clk 0:00:14]}  Kd6 {[%clk 0:00:04]} 40. Kh2 {[%clk 0:00:11]}  Kc5 {[%clk 0:00:04]} 41. Ra6 {[%clk 0:00:11]}  a4 {[%clk 0:00:02]} 42. Rxc6+ {[%clk 0:00:10]}  Kxc6 {[%clk 0:00:02]} 43. bxa4 {[%clk 0:00:10]}  Kc5 {[%clk 0:00:02]} 44. a5 {[%clk 0:00:09]} 1-0


[Site "https://www.chess.com"]

[Event "Titled Tuesday Blitz June 28 Late 2022"]
[White "Saveliev, Alexei"]
[Black "Kostiukov, Alexandr"]
[WhiteFideId "24128546"]
[BlackFideId "14108100"]
[WhiteElo "2281"]
[BlackElo "2202"]
[Result "0-1"]
[Round "03"]
[TimeControl "180+1"]
[Date "2022.06.29"]
[WhiteClock "0:00:01"]
[BlackClock "0:00:17"]

1. c4 {[%clk 0:02:55]}  c5 {[%clk 0:02:59]} 2. Nc3 {[%clk 0:02:54]}  Nf6 {[%clk 0:02:59]} 3. e3 {[%clk 0:02:55]}  g6 {[%clk 0:03:00]} 4. d4 {[%clk 0:02:55]}  Bg7 {[%clk 0:03:00]} 5. Nf3 {[%clk 0:02:54]}  O-O {[%clk 0:03:00]} 6. d5 {[%clk 0:02:54]}  e6 {[%clk 0:03:00]} 7. Be2 {[%clk 0:02:54]}  exd5 {[%clk 0:03:00]} 8. cxd5 {[%clk 0:02:55]}  d6 {[%clk 0:03:01]} 9. O-O {[%clk 0:02:55]}  Re8 {[%clk 0:02:59]} 10. h3 {[%clk 0:02:55]}  a6 {[%clk 0:02:54]} 11. a4 {[%clk 0:02:56]}  Nbd7 {[%clk 0:02:54]} 12. Nd2 {[%clk 0:02:56]}  Rb8 {[%clk 0:02:50]} 13. e4 {[%clk 0:02:47]}  Qc7 {[%clk 0:02:34]} 14. f3 {[%clk 0:02:44]}  Nh5 {[%clk 0:02:28]} 15. Re1 {[%clk 0:02:35]}  Ne5 {[%clk 0:02:14]} 16. Nf1 {[%clk 0:02:27]}  Nf6 {[%clk 0:01:45]} 17. Bf4 {[%clk 0:02:22]}  Bd7 {[%clk 0:01:40]} 18. a5 {[%clk 0:02:09]}  b5 {[%clk 0:01:31]} 19. axb6 {[%clk 0:02:10]}  Rxb6 {[%clk 0:01:31]} 20. Qc1 {[%clk 0:02:02]}  Bb5 {[%clk 0:01:25]} 21. Bxe5 {[%clk 0:01:54]}  Rxe5 {[%clk 0:01:23]} 22. Ne3 {[%clk 0:01:54]}  Nh5 {[%clk 0:01:13]} 23. Nc4 {[%clk 0:01:48]}  Bxc4 {[%clk 0:01:11]} 24. Bxc4 {[%clk 0:01:49]}  Qb7 {[%clk 0:01:06]} 25. Ra2 {[%clk 0:01:43]}  Re8 {[%clk 0:01:05]} 26. b3 {[%clk 0:01:34]}  Bd4+ {[%clk 0:01:03]} 27. Kh2 {[%clk 0:01:32]}  Be5+ {[%clk 0:01:02]} 28. Kg1 {[%clk 0:01:31]}  Bd4+ {[%clk 0:01:02]} 29. Kh1 {[%clk 0:01:31]}  Qe7 {[%clk 0:01:01]} 30. Ne2 {[%clk 0:01:27]}  Bf2 {[%clk 0:01:00]} 31. Rf1 {[%clk 0:01:03]}  Qh4 {[%clk 0:00:59]} 32. Rxa6 {[%clk 0:00:39]}  Rxa6 {[%clk 0:00:55]} 33. Bxa6 {[%clk 0:00:40]}  Ng3+ {[%clk 0:00:49]} 34. Nxg3 {[%clk 0:00:40]}  Qxg3 {[%clk 0:00:49]} 35. Bd3 {[%clk 0:00:28]}  g5 {[%clk 0:00:39]} 36. Qd2 {[%clk 0:00:25]}  Bd4 {[%clk 0:00:38]} 37. f4 {[%clk 0:00:24]}  Be3 {[%clk 0:00:36]} 38. Qe2 {[%clk 0:00:15]}  Bxf4 {[%clk 0:00:35]} 39. Kg1 {[%clk 0:00:16]}  Qh2+ {[%clk 0:00:30]} 40. Kf2 {[%clk 0:00:16]}  Ra8 {[%clk 0:00:28]} 41. Qg4 {[%clk 0:00:08]}  Ra2+ {[%clk 0:00:26]} 42. Be2 {[%clk 0:00:09]}  Kg7 {[%clk 0:00:24]} 43. Rb1 {[%clk 0:00:06]}  h5 {[%clk 0:00:23]} 44. Qf3 {[%clk 0:00:05]}  h4 {[%clk 0:00:23]} 45. b4 {[%clk 0:00:05]}  Bg3+ {[%clk 0:00:22]} 46. Ke3 {[%clk 0:00:04]}  Be5 {[%clk 0:00:22]} 47. bxc5 {[%clk 0:00:03]}  dxc5 {[%clk 0:00:22]} 48. Rb7 {[%clk 0:00:03]}  Ra3+ {[%clk 0:00:22]} 49. Bd3 {[%clk 0:00:03]}  Bd4+ {[%clk 0:00:21]} 50. Kd2 {[%clk 0:00:03]}  Ra2+ {[%clk 0:00:22]} 51. Bc2 {[%clk 0:00:04]}  Bf6 {[%clk 0:00:17]} 52. Qf2 {[%clk 0:00:01]}  Qe5 {[%clk 0:00:17]} 0-1


[Site "https://www.chess.com"]

[Event "Titled Tuesday Blitz June 28 Late 2022"]
[White "Silvestre, Christian"]
[Black "Gardezi, Arsal"]
[WhiteFideId "30956269"]
[BlackFideId "30949521"]
[WhiteElo "2361"]
[BlackElo "1781"]
[Result "1-0"]
[Round "03"]
[TimeControl "180+1"]
[Date "2022.06.29"]
[WhiteClock "0:01:09"]
[BlackClock "0:00:02"]

1. e4 {[%clk 0:03:00]}  e6 {[%clk 0:02:54]} 2. d4 {[%clk 0:03:00]}  d5 {[%clk 0:02:54]} 3. e5 {[%clk 0:03:00]}  c5 {[%clk 0:02:53]} 4. c3 {[%clk 0:03:01]}  Nc6 {[%clk 0:02:52]} 5. Nf3 {[%clk 0:03:01]}  Bd7 {[%clk 0:02:40]} 6. Bd3 {[%clk 0:03:00]}  Rc8 {[%clk 0:02:29]} 7. O-O {[%clk 0:02:59]}  cxd4 {[%clk 0:02:22]} 8. cxd4 {[%clk 0:02:58]}  Nb4 {[%clk 0:02:23]} 9. Nc3 {[%clk 0:02:57]}  Nxd3 {[%clk 0:02:23]} 10. Qxd3 {[%clk 0:02:58]}  a6 {[%clk 0:02:23]} 11. Bg5 {[%clk 0:02:57]}  Be7 {[%clk 0:02:22]} 12. h4 {[%clk 0:02:56]}  h6 {[%clk 0:02:12]} 13. Bxe7 {[%clk 0:02:53]}  Nxe7 {[%clk 0:02:13]} 14. h5 {[%clk 0:02:51]}  b5 {[%clk 0:02:02]} 15. Rfc1 {[%clk 0:02:50]}  O-O {[%clk 0:01:56]} 16. Ne2 {[%clk 0:02:45]}  Qb6 {[%clk 0:01:50]} 17. Rxc8 {[%clk 0:02:44]}  Rxc8 {[%clk 0:01:49]} 18. Rc1 {[%clk 0:02:44]}  Nc6 {[%clk 0:01:41]} 19. Rc5 {[%clk 0:02:35]}  Rc7 {[%clk 0:01:19]} 20. g4 {[%clk 0:02:20]}  Nxd4 {[%clk 0:01:15]} 21. Rxc7 {[%clk 0:02:06]}  Nxf3+ {[%clk 0:01:14]} 22. Qxf3 {[%clk 0:02:04]}  Qxc7 {[%clk 0:01:15]} 23. Qc3 {[%clk 0:02:02]}  Qxc3 {[%clk 0:01:03]} 24. bxc3 {[%clk 0:01:59]}  Kf8 {[%clk 0:01:00]} 25. f4 {[%clk 0:01:58]}  Ke8 {[%clk 0:00:57]} 26. Kf2 {[%clk 0:01:59]}  Kd8 {[%clk 0:00:57]} 27. Ke3 {[%clk 0:02:00]}  Kc7 {[%clk 0:00:57]} 28. Kd4 {[%clk 0:01:59]}  Kb6 {[%clk 0:00:57]} 29. g5 {[%clk 0:01:59]}  a5 {[%clk 0:00:34]} 30. Nc1 {[%clk 0:01:53]}  b4 {[%clk 0:00:30]} 31. cxb4 {[%clk 0:01:53]}  axb4 {[%clk 0:00:30]} 32. Nd3 {[%clk 0:01:53]}  Kb5 {[%clk 0:00:20]} 33. Nf2 {[%clk 0:01:52]}  Ka4 {[%clk 0:00:14]} 34. Nd3 {[%clk 0:01:33]}  Ka3 {[%clk 0:00:13]} 35. Kc5 {[%clk 0:01:33]}  b3 {[%clk 0:00:07]} 36. axb3 {[%clk 0:01:31]}  Kxb3 {[%clk 0:00:08]} 37. Kd4 {[%clk 0:01:20]}  Bb5 {[%clk 0:00:04]} 38. Nc5+ {[%clk 0:01:16]}  Kc2 {[%clk 0:00:04]} 39. g6 {[%clk 0:01:13]}  fxg6 {[%clk 0:00:01]} 40. hxg6 {[%clk 0:01:14]}  Be8 {[%clk 0:00:01]} 41. Nxe6 {[%clk 0:01:11]}  Bxg6 {[%clk 0:00:02]} 42. Nxg7 {[%clk 0:01:09]} 1-0


[Site "https://www.chess.com"]

[Event "Titled Tuesday Blitz June 28 Late 2022"]
[White "So, Wesley"]
[Black "Makarian, Rudik"]
[WhiteFideId "5202213"]
[BlackFideId "44105681"]
[WhiteElo "2742"]
[BlackElo "2398"]
[Result "1-0"]
[Round "03"]
[TimeControl "180+1"]
[Date "2022.06.28"]
[WhiteClock "0:00:10"]
[BlackClock "0:00:07"]

1. e4 {[%clk 0:03:00]}  c5 {[%clk 0:02:56]} 2. Nf3 {[%clk 0:03:01]}  d6 {[%clk 0:02:55]} 3. Bb5+ {[%clk 0:03:00]}  Nd7 {[%clk 0:02:55]} 4. a4 {[%clk 0:03:00]}  Nf6 {[%clk 0:02:49]} 5. Nc3 {[%clk 0:03:00]}  e6 {[%clk 0:02:48]} 6. a5 {[%clk 0:03:00]}  a6 {[%clk 0:02:47]} 7. Be2 {[%clk 0:02:59]}  Be7 {[%clk 0:02:46]} 8. O-O {[%clk 0:02:59]}  O-O {[%clk 0:02:39]} 9. Re1 {[%clk 0:02:55]}  Qc7 {[%clk 0:02:31]} 10. Bf1 {[%clk 0:02:44]}  Ne5 {[%clk 0:02:29]} 11. Nxe5 {[%clk 0:02:42]}  dxe5 {[%clk 0:02:29]} 12. d3 {[%clk 0:02:28]}  Bd7 {[%clk 0:02:29]} 13. Bd2 {[%clk 0:02:28]}  Rad8 {[%clk 0:02:24]} 14. Na4 {[%clk 0:02:26]}  Bc6 {[%clk 0:01:54]} 15. b3 {[%clk 0:02:19]}  Nd7 {[%clk 0:01:49]} 16. Qe2 {[%clk 0:02:13]}  f5 {[%clk 0:01:43]} 17. g3 {[%clk 0:02:10]}  Rde8 {[%clk 0:01:39]} 18. Bg2 {[%clk 0:02:06]}  Bd6 {[%clk 0:01:35]} 19. Nb2 {[%clk 0:02:02]}  Qd8 {[%clk 0:01:28]} 20. Nc4 {[%clk 0:02:00]}  Bc7 {[%clk 0:01:28]} 21. h4 {[%clk 0:01:52]}  f4 {[%clk 0:01:25]} 22. Bh3 {[%clk 0:01:45]}  Qf6 {[%clk 0:01:23]} 23. Rf1 {[%clk 0:01:39]}  Kh8 {[%clk 0:01:20]} 24. Qh5 {[%clk 0:01:37]}  h6 {[%clk 0:01:15]} 25. Kh1 {[%clk 0:01:19]}  Kh7 {[%clk 0:01:13]} 26. Bc3 {[%clk 0:01:16]}  g6 {[%clk 0:00:56]} 27. Qe2 {[%clk 0:01:16]}  Bb5 {[%clk 0:00:43]} 28. Na3 {[%clk 0:01:10]}  Nb8 {[%clk 0:00:42]} 29. Bb2 {[%clk 0:01:06]}  Bd7 {[%clk 0:00:40]} 30. Nc4 {[%clk 0:01:00]}  Bb5 {[%clk 0:00:40]} 31. Nd2 {[%clk 0:00:57]}  Bd7 {[%clk 0:00:38]} 32. Ba3 {[%clk 0:00:56]}  Qe7 {[%clk 0:00:32]} 33. Nc4 {[%clk 0:00:51]}  Nc6 {[%clk 0:00:30]} 34. c3 {[%clk 0:00:50]}  Nxa5 {[%clk 0:00:27]} 35. Bxc5 {[%clk 0:00:42]}  Qxc5 {[%clk 0:00:27]} 36. b4 {[%clk 0:00:43]}  Qe7 {[%clk 0:00:25]} 37. Nxa5 {[%clk 0:00:42]}  Rb8 {[%clk 0:00:20]} 38. Nb3 {[%clk 0:00:34]}  Rf7 {[%clk 0:00:20]} 39. Nc5 {[%clk 0:00:34]}  Bc8 {[%clk 0:00:19]} 40. Qa2 {[%clk 0:00:27]}  Rf6 {[%clk 0:00:19]} 41. Qc4 {[%clk 0:00:26]}  Bd6 {[%clk 0:00:19]} 42. d4 {[%clk 0:00:25]}  exd4 {[%clk 0:00:17]} 43. e5 {[%clk 0:00:25]}  Bxe5 {[%clk 0:00:16]} 44. Rae1 {[%clk 0:00:25]}  Bd6 {[%clk 0:00:16]} 45. Ne4 {[%clk 0:00:22]}  b5 {[%clk 0:00:15]} 46. Nxf6+ {[%clk 0:00:21]}  Qxf6 {[%clk 0:00:16]} 47. Qxd4 {[%clk 0:00:18]}  e5 {[%clk 0:00:15]} 48. Qa7+ {[%clk 0:00:12]}  Bb7+ {[%clk 0:00:11]} 49. Bg2 {[%clk 0:00:12]}  f3 {[%clk 0:00:11]} 50. Bh3 {[%clk 0:00:12]}  Qg7 {[%clk 0:00:08]} 51. Rd1 {[%clk 0:00:11]}  Bf8 {[%clk 0:00:07]} 52. Rd7 {[%clk 0:00:10]} 1-0


[Site "https://www.chess.com"]

[Event "Titled Tuesday Blitz June 28 Late 2022"]
[White "Souleidis, Georgios"]
[Black "Jorajuria Mendoza, Algol"]
[WhiteFideId "4206827"]
[BlackFideId "5128897"]
[WhiteElo "2401"]
[BlackElo "1600"]
[Result "0-1"]
[Round "03"]
[TimeControl "180+1"]
[Date "2022.06.29"]
[WhiteClock "0:00:02"]
[BlackClock "0:00:03"]

1. e4 {[%clk 0:02:48]}  c5 {[%clk 0:02:59]} 2. Be2 {[%clk 0:02:48]}  Nc6 {[%clk 0:02:59]} 3. f4 {[%clk 0:02:47]}  e6 {[%clk 0:02:57]} 4. d3 {[%clk 0:02:48]}  Nge7 {[%clk 0:02:57]} 5. Nf3 {[%clk 0:02:48]}  g6 {[%clk 0:02:56]} 6. O-O {[%clk 0:02:48]}  Bg7 {[%clk 0:02:57]} 7. c3 {[%clk 0:02:49]}  d5 {[%clk 0:02:55]} 8. Na3 {[%clk 0:02:49]}  O-O {[%clk 0:02:47]} 9. Nc2 {[%clk 0:02:49]}  b5 {[%clk 0:02:40]} 10. a3 {[%clk 0:02:48]}  a5 {[%clk 0:02:38]} 11. e5 {[%clk 0:02:47]}  Bb7 {[%clk 0:02:32]} 12. d4 {[%clk 0:02:46]}  cxd4 {[%clk 0:02:22]} 13. Ncxd4 {[%clk 0:02:47]}  Nf5 {[%clk 0:02:12]} 14. Nxb5 {[%clk 0:02:35]}  f6 {[%clk 0:02:03]} 15. exf6 {[%clk 0:02:28]}  Bxf6 {[%clk 0:02:03]} 16. a4 {[%clk 0:02:14]}  Qb6+ {[%clk 0:01:57]} 17. Kh1 {[%clk 0:02:13]}  Rad8 {[%clk 0:01:52]} 18. Bd3 {[%clk 0:01:59]}  d4 {[%clk 0:01:35]} 19. Qe2 {[%clk 0:01:57]}  Rfe8 {[%clk 0:01:26]} 20. Bd2 {[%clk 0:01:39]}  e5 {[%clk 0:01:03]} 21. fxe5 {[%clk 0:01:16]}  Nxe5 {[%clk 0:01:00]} 22. Nxe5 {[%clk 0:01:16]}  Rxe5 {[%clk 0:00:59]} 23. Bc4+ {[%clk 0:01:15]}  Kh8 {[%clk 0:00:56]} 24. Qf2 {[%clk 0:01:12]}  Bh4 {[%clk 0:00:26]} 25. Qf4 {[%clk 0:00:39]}  Re4 {[%clk 0:00:20]} 26. Qc7 {[%clk 0:00:38]}  Qxc7 {[%clk 0:00:07]} 27. Nxc7 {[%clk 0:00:39]}  Rd7 {[%clk 0:00:03]} 28. Nb5 {[%clk 0:00:32]}  d3 {[%clk 0:00:03]} 29. b3 {[%clk 0:00:26]}  Re2 {[%clk 0:00:03]} 30. Rg1 {[%clk 0:00:02]}  Rxd2 {[%clk 0:00:03]} 0-1


[Site "https://www.chess.com"]

[Event "Titled Tuesday Blitz June 28 Late 2022"]
[White "Tanenbaum, Zachary"]
[Black "Kulon, Klaudia"]
[WhiteFideId "2060850"]
[BlackFideId "1131044"]
[WhiteElo "2702"]
[BlackElo "2490"]
[Result "1-0"]
[Round "03"]
[TimeControl "180+1"]
[Date "2022.06.29"]
[WhiteClock "0:00:01"]
[BlackClock "0:00:02"]

1. e4 {[%clk 0:03:00]}  c6 {[%clk 0:03:00]} 2. d4 {[%clk 0:03:00]}  d5 {[%clk 0:03:01]} 3. exd5 {[%clk 0:03:01]}  cxd5 {[%clk 0:03:02]} 4. Bd3 {[%clk 0:03:01]}  Nc6 {[%clk 0:03:01]} 5. c3 {[%clk 0:03:02]}  Nf6 {[%clk 0:03:01]} 6. Bf4 {[%clk 0:03:02]}  Bg4 {[%clk 0:03:01]} 7. Qb3 {[%clk 0:03:03]}  Qc8 {[%clk 0:03:01]} 8. Nd2 {[%clk 0:03:03]}  e6 {[%clk 0:03:01]} 9. Ngf3 {[%clk 0:03:04]}  Be7 {[%clk 0:03:00]} 10. O-O {[%clk 0:03:04]}  Bh5 {[%clk 0:03:01]} 11. c4 {[%clk 0:02:38]}  dxc4 {[%clk 0:02:43]} 12. Nxc4 {[%clk 0:02:38]}  Bxf3 {[%clk 0:02:37]} 13. gxf3 {[%clk 0:02:39]}  O-O {[%clk 0:02:16]} 14. Rfd1 {[%clk 0:02:09]}  Rd8 {[%clk 0:02:07]} 15. Be5 {[%clk 0:02:05]}  Nd5 {[%clk 0:01:54]} 16. Rac1 {[%clk 0:01:54]}  Qd7 {[%clk 0:01:51]} 17. Be4 {[%clk 0:01:47]}  Rac8 {[%clk 0:01:41]} 18. Kh1 {[%clk 0:01:42]}  Nxe5 {[%clk 0:01:12]} 19. Nxe5 {[%clk 0:01:37]}  Qd6 {[%clk 0:00:56]} 20. Qxb7 {[%clk 0:01:29]}  Rb8 {[%clk 0:00:37]} 21. Qc6 {[%clk 0:01:27]}  Rxb2 {[%clk 0:00:35]} 22. Qxd6 {[%clk 0:00:55]}  Bxd6 {[%clk 0:00:35]} 23. Nc4 {[%clk 0:00:54]}  Rbb8 {[%clk 0:00:36]} 24. Bxd5 {[%clk 0:00:40]}  exd5 {[%clk 0:00:37]} 25. Ne3 {[%clk 0:00:41]}  Rb5 {[%clk 0:00:30]} 26. Rb1 {[%clk 0:00:38]}  Ra5 {[%clk 0:00:29]} 27. Rb2 {[%clk 0:00:30]}  Rc8 {[%clk 0:00:28]} 28. Rdb1 {[%clk 0:00:26]}  g6 {[%clk 0:00:27]} 29. Kg2 {[%clk 0:00:22]}  Ra4 {[%clk 0:00:27]} 30. Rd1 {[%clk 0:00:16]}  Ra5 {[%clk 0:00:26]} 31. Rd3 {[%clk 0:00:16]}  Kg7 {[%clk 0:00:21]} 32. Kf1 {[%clk 0:00:15]}  Rc1+ {[%clk 0:00:21]} 33. Kg2 {[%clk 0:00:15]}  Ra1 {[%clk 0:00:21]} 34. Rdd2 {[%clk 0:00:14]}  h5 {[%clk 0:00:19]} 35. h3 {[%clk 0:00:13]}  Kf6 {[%clk 0:00:19]} 36. Rdc2 {[%clk 0:00:13]}  Ke6 {[%clk 0:00:19]} 37. Re2 {[%clk 0:00:13]}  Kf6 {[%clk 0:00:19]} 38. Rb7 {[%clk 0:00:12]}  R1xa2 {[%clk 0:00:17]} 39. Nxd5+ {[%clk 0:00:12]}  Kg7 {[%clk 0:00:17]} 40. Rxa2 {[%clk 0:00:08]}  Rxa2 {[%clk 0:00:18]} 41. Rd7 {[%clk 0:00:08]}  Bf8 {[%clk 0:00:17]} 42. Nc7 {[%clk 0:00:07]}  Kf6 {[%clk 0:00:12]} 43. d5 {[%clk 0:00:06]}  a5 {[%clk 0:00:12]} 44. Ne8+ {[%clk 0:00:05]}  Ke5 {[%clk 0:00:11]} 45. f4+ {[%clk 0:00:05]}  Kd4 {[%clk 0:00:10]} 46. Rxf7 {[%clk 0:00:05]}  Bc5 {[%clk 0:00:08]} 47. f5 {[%clk 0:00:05]}  gxf5 {[%clk 0:00:07]} 48. Rxf5 {[%clk 0:00:06]}  Kc4 {[%clk 0:00:06]} 49. d6 {[%clk 0:00:05]}  Rd2 {[%clk 0:00:05]} 50. Rf4+ {[%clk 0:00:04]}  Kb5 {[%clk 0:00:04]} 51. Rf5 {[%clk 0:00:05]}  a4 {[%clk 0:00:04]} 52. Nc7+ {[%clk 0:00:04]}  Kc6 {[%clk 0:00:04]} 53. Ne6 {[%clk 0:00:04]}  Bxd6 {[%clk 0:00:05]} 54. Rxh5 {[%clk 0:00:04]}  a3 {[%clk 0:00:05]} 55. Ra5 {[%clk 0:00:04]}  a2 {[%clk 0:00:05]} 56. Nd4+ {[%clk 0:00:03]}  Kb6 {[%clk 0:00:04]} 57. Ra4 {[%clk 0:00:03]}  Be5 {[%clk 0:00:02]} 58. Nb3 {[%clk 0:00:03]}  Rb2 {[%clk 0:00:03]} 59. Nc1 {[%clk 0:00:03]}  a1=Q {[%clk 0:00:02]} 60. Rxa1 {[%clk 0:00:03]}  Rxf2+ {[%clk 0:00:02]} 61. Kxf2 {[%clk 0:00:03]}  Bxa1 {[%clk 0:00:03]} 62. Kf3 {[%clk 0:00:04]}  Bh8 {[%clk 0:00:03]} 63. Kg4 {[%clk 0:00:04]}  Kc7 {[%clk 0:00:04]} 64. Kf5 {[%clk 0:00:05]}  Kd6 {[%clk 0:00:05]} 65. Kg6 {[%clk 0:00:05]}  Ke5 {[%clk 0:00:05]} 66. Ne2 {[%clk 0:00:04]}  Ke4 {[%clk 0:00:03]} 67. h4 {[%clk 0:00:04]}  Kf3 {[%clk 0:00:03]} 68. Nc1 {[%clk 0:00:04]}  Ke4 {[%clk 0:00:02]} 69. h5 {[%clk 0:00:04]}  Bb2 {[%clk 0:00:02]} 70. Nb3 {[%clk 0:00:03]}  Kd5 {[%clk 0:00:02]} 71. h6 {[%clk 0:00:02]}  Ke6 {[%clk 0:00:02]} 72. Nc5+ {[%clk 0:00:02]}  Ke7 {[%clk 0:00:02]} 73. h7 {[%clk 0:00:03]}  Ba1 {[%clk 0:00:02]} 74. Ne4 {[%clk 0:00:02]}  Bb2 {[%clk 0:00:02]} 75. Ng3 {[%clk 0:00:02]}  Ke6 {[%clk 0:00:01]} 76. Nh5 {[%clk 0:00:02]}  Ba1 {[%clk 0:00:02]} 77. Ng7+ {[%clk 0:00:01]} 1-0


[Site "https://www.chess.com"]